bitfinex/quotes_SOLUSD_20240711
["timestamp","ask_amount","ask_price","bid_price","bid_amount"]
[1720692721639,11.54,142.85,142.8,7.1726]
[1720692721861,11.54,142.85,142.8,18.7126]
[1720692722250,11.54,142.84,142.8,7.1726]
[1720692722445,11.54,142.85,142.81,7.002]
[1720692722646,11.54,142.86,142.83,7.0012]
[1720692722966,11.54,142.87,142.82,18.5416]
[1720692723141,11.54,142.87,142.82,11.54]
[1720692723342,11.54,142.86,142.81,18.5421]
[1720692723542,11.54,142.87,142.82,11.54]
[1720692723968,11.54,142.86,142.81,18.5421]
[1720692724361,11.54,142.86,142.81,11.54]
[1720692724669,11.54,142.86,142.81,18.5422]
[1720692724847,11.54,142.85,142.81,7.0022]
[1720692725276,15.271,142.88,142.8,18.7126]
[1720692725563,11.54,142.85,142.8,18.7126]
[1720692726270,11.54,142.83,142.79,7.0032]
[1720692727346,11.54,142.82,142.77,7.0038]
[1720692728061,11.54,142.81,142.76,23.3199]
[1720692728270,11.54,142.8,142.75,7.0052]
[1720692728441,11.54,142.8,142.75,18.5452]
[1720692729263,11.54,142.8,142.75,7.0052]
[1720692729668,11.54,142.8,142.75,18.5452]
[1720692730342,11.54,142.8,142.75,7.0052]
[1720692730659,16.3723,142.81,142.75,18.5452]
[1720692730660,11.54,142.79,142.75,18.5452]
[1720692731042,11.54,142.79,142.74,18.5456]
[1720692731262,16.3723,142.81,142.73,18.7158]
[1720692731263,11.54,142.78,142.73,18.7158]
[1720692731451,11.54,142.78,142.73,7.0058]
[1720692731644,16.3723,142.81,142.73,7.0058]
[1720692731645,11.54,142.77,142.73,7.0058]
[1720692732260,11.54,142.77,142.74,7.0057]
[1720692732460,11.54,142.78,142.74,7.0057]
[1720692734550,16.3723,142.81,142.73,0.17]
[1720692734851,11.54,142.8,142.76,7.0045]
[1720692735051,11.54,142.8,142.75,7.0051]
[1720692735869,11.54,142.79,142.74,18.5456]
[1720692736468,11.54,142.79,142.75,7.005]
[1720692736766,16.3723,142.81,142.76,7.0043]
[1720692737147,11.54,142.82,142.77,11.54]
[1720692738349,11.54,142.81,142.77,11.54]
[1720692738668,6.156,142.83,142.77,11.54]
[1720692738871,14.5997988,142.87,142.79,11.54]
[1720692739081,14.5997988,142.87,142.79,7.0032]
[1720692739286,11.54,142.85,142.8,11.54]
[1720692740191,20.7671158,142.88,142.8,0.17]
[1720692740484,27.9994,142.88,142.83,11.54]
[1720692741183,11.54,142.87,142.82,11.54]
[1720692741352,11.54,142.86,142.79,7.0032]
[1720692741547,11.54,142.84,142.79,11.54]
[1720692742265,11.54,142.84,142.76,6.4091]
[1720692742461,11.54,142.8,142.75,15.8904]
[1720692742764,10.61487689,142.8,142.75,11.54]
[1720692744674,11.54,142.78,142.73,18.5461]
[1720692745455,6.1474,142.81,142.74,7.0056]
[1720692745655,11.54,142.78,142.74,7.0056]
[1720692745960,11.54,142.78,142.73,18.5462]
[1720692746662,11.54,142.78,142.74,7.0056]
[1720692746969,11.54,142.78,142.72,15.8712703]
[1720692746970,6.1474,142.81,142.75,18.545]
[1720692747167,11.54,142.8,142.76,7.0047]
[1720692747479,11.54,142.81,142.76,18.5447]
[1720692747663,11.54,142.81,142.76,11.54]
[1720692747866,11.54,142.82,142.76,7.0043]
[1720692748060,15.6094,142.83,142.77,18.5441]
[1720692748388,11.54,142.84,142.79,11.54]
[1720692748577,6.2406,142.85,142.78,18.5436]
[1720692748767,11.54,142.83,142.78,18.5436]
[1720692749456,11.54,142.84,142.79,11.54]
[1720692750275,11.54,142.85,142.8,11.54]
[1720692750577,11.54,142.85,142.78,7.0036]
[1720692750578,15.3226,142.86,142.78,7.0036]
[1720692751469,15.3226,142.86,142.77,7.0042]
[1720692751779,15.3226,142.86,142.78,0.17]
[1720692753074,15.3226,142.86,142.75,0.17]
[1720692753259,23.46,142.85,142.76,0.17]
[1720692753459,23.46,142.85,142.76,7.0045]
[1720692753660,15.3226,142.86,142.76,7.0047]
[1720692753878,0.34,142.85,142.76,7.0047]
[1720692754068,0.34,142.85,142.74,7.3454]
[1720692754275,23.46,142.85,142.75,7.0051]
[1720692754586,6.609,142.84,142.75,7.0051]
[1720692754786,0.17,142.83,142.75,7.0051]
[1720692756370,16.4819,142.82,142.72,15.8712703]
[1720692756688,16.4819,142.82,142.73,7.1758]
[1720692757185,16.4819,142.82,142.74,7.0055]
[1720692759085,14.4819,142.82,142.74,7.0055]
[1720692763294,14.4819,142.82,142.72,0.8522703]
[1720692763479,0.34,142.81,142.72,0.8522703]
[1720692763991,0.34,142.81,142.73,7.0059]
[1720692764491,0.34,142.81,142.72,0.8522703]
[1720692765082,0.34,142.81,142.74,7.0056]
[1720692765988,0.34,142.81,142.73,7.006]
[1720692767089,0.34,142.81,142.72,0.8522703]
[1720692767275,0.34,142.81,142.74,7.0056]
[1720692768407,14.4819,142.82,142.73,0.17]
[1720692768692,14.4819,142.82,142.74,7.0056]
[1720692770685,11.57,142.79,142.74,18.5756]
[1720692771005,11.57,142.79,142.74,11.57]
[1720692772195,11.57,142.78,142.73,11.57]
[1720692773183,11.57,142.77,142.72,19.4287703]
[1720692774095,11.57,142.77,142.73,7.0062]
[1720692774298,6.348,142.79,142.74,7.0057]
[1720692774505,17.918,142.79,142.75,7.0052]
[1720692774667,6.348,142.79,142.75,11.57]
[1720692775493,17.918,142.79,142.74,11.57]
[1720692775991,15.3475,142.78,142.72,0.8522703]
[1720692776177,11.57,142.76,142.72,0.8522703]
[1720692776777,11.57,142.77,142.72,19.4288703]
[1720692776977,11.57,142.77,142.73,7.0061]
[1720692777299,15.3475,142.78,142.74,7.0056]
[1720692777488,15.3475,142.78,142.74,18.5756]
[1720692778197,15.3475,142.78,142.74,11.57]
[1720692778883,26.9175,142.78,142.74,0.17]
[1720692779391,26.9175,142.78,142.73,18.576]
[1720692780178,26.9175,142.78,142.73,7.006]
[1720692780377,26.9175,142.78,142.73,18.576]
[1720692781477,26.9175,142.78,142.73,11.57]
[1720692781685,11.57,142.77,142.72,19.4287703]
[1720692781888,15.3475,142.78,142.73,7.1761]
[1720692782098,26.9175,142.78,142.74,7.0056]
[1720692782407,15.3475,142.78,142.73,18.7462]
[1720692782591,26.9175,142.78,142.73,18.5762]
[1720692783578,26.9175,142.78,142.72,0.8522703]
[1720692783778,15.3475,142.78,142.74,18.5757]
[1720692783998,15.3475,142.78,142.75,7.0052]
[1720692784299,15.3475,142.78,142.74,18.5756]
[1720692784902,26.9175,142.78,142.73,18.576]
[1720692785787,26.9175,142.78,142.73,11.57]
[1720692785996,15.3475,142.78,142.74,18.5756]
[1720692786407,15.3475,142.78,142.74,11.57]
[1720692787198,15.3475,142.78,142.73,11.57]
[1720692787395,26.9175,142.78,142.72,7.8588703]
[1720692787609,11.57,142.76,142.72,0.8522703]
[1720692788612,15.3475,142.78,142.72,7.8585703]
[1720692788784,26.9175,142.78,142.73,18.5761]
[1720692789184,26.9175,142.78,142.74,11.57]
[1720692789185,15.3475,142.78,142.74,11.57]
[1720692789920,26.9175,142.78,142.73,11.57]
[1720692790408,15.3475,142.78,142.73,18.5761]
[1720692790622,26.9175,142.78,142.73,18.5761]
[1720692790785,26.9175,142.78,142.72,0.8522703]
[1720692791108,26.9175,142.78,142.73,11.57]
[1720692791488,11.57,142.77,142.72,19.4288703]
[1720692792209,11.57,142.77,142.72,0.8522703]
[1720692792383,11.57,142.77,142.72,28.6667703]
[1720692792585,6.5629,142.82,142.72,28.6667703]
[1720692792586,6.5629,142.82,142.77,7.0041]
[1720692792810,16.5342,142.86,142.79,18.5732]
[1720692792811,11.57,142.84,142.79,18.5732]
[1720692793414,11.57,142.84,142.79,11.57]
[1720692793716,11.57,142.84,142.79,18.5732]
[1720692795296,6.5018,142.85,142.79,18.5732]
[1720692795906,11.57,142.84,142.8,11.57]
[1720692796316,11.57,142.84,142.79,11.57]
[1720692797924,15.4654,142.83,142.78,7.0036]
[1720692798218,15.4654,142.83,142.79,11.57]
[1720692798411,15.4654,142.83,142.79,18.573]
[1720692798607,15.4654,142.83,142.8,11.57]
[1720692798933,15.4654,142.83,142.81,11.57]
[1720692802927,15.4654,142.83,142.82,11.57]
[1720692803112,6.5018,142.85,142.82,11.57]
[1720692807626,15.2197,142.87,142.84,11.57]
[1720692808203,15.2197,142.87,142.85,11.57]
[1720692809206,6.3769,142.89,142.86,11.57]
[1720692809411,15.4766,142.91,142.87,11.57]
[1720692809640,15.4766,142.91,142.84,7.0007]
[1720692809934,11.57,142.9,142.85,11.57]
[1720692810309,27.0466,142.91,142.86,11.57]
[1720692810511,27.0466,142.91,142.87,11.57]
[1720692810719,15.4766,142.91,142.87,11.57]
[1720692811022,15.4766,142.91,142.88,11.57]
[1720692813634,23.77271729,142.95,142.83,0.17]
[1720692813814,35.34271729,142.95,142.9,11.57]
[1720692814500,15.571,142.95,142.9,11.57]
[1720692814698,27.141,142.95,142.9,11.57]
[1720692815424,15.571,142.95,142.92,11.57]
[1720692816136,15.571,142.95,142.88,7.1684]
[1720692816303,27.141,142.95,142.9,11.57]
[1720692816711,15.571,142.95,142.91,11.57]
[1720692817835,15.571,142.95,142.92,11.57]
[1720692819129,15.571,142.95,142.93,11.57]
[1720692824340,55.89961754,143.01,142.94,11.57]
[1720692824341,22.8747,143.0,142.94,11.57]
[1720692824509,34.4447,143.0,142.94,11.57]
[1720692824711,34.4447,143.0,142.95,11.57]
[1720692825119,22.8747,143.0,142.96,11.57]
[1720692825524,25.69601331,143.0,142.96,11.57]
[1720692827230,22.8747,143.0,142.96,11.57]
[1720692827535,22.8747,143.0,142.97,11.57]
[1720692829024,22.8747,143.0,142.96,11.57]
[1720692829219,11.57,142.99,142.94,11.57]
[1720692829613,34.4447,143.0,142.95,11.57]
[1720692830115,34.4447,143.0,142.96,11.57]
[1720692830318,22.8747,143.0,142.96,11.57]
[1720692832019,22.8747,143.0,142.95,11.57]
[1720692832222,34.4447,143.0,142.95,11.57]
[1720692833334,22.8747,143.0,142.95,11.57]
[1720692833929,22.8747,143.0,142.96,11.57]
[1720692834441,34.4447,143.0,142.92,6.9965]
[1720692834617,22.8747,143.0,142.95,11.57]
[1720692834818,34.4447,143.0,142.95,11.57]
[1720692836748,22.8747,143.0,142.96,11.57]
[1720692837442,34.4447,143.0,142.95,11.57]
[1720692839246,22.8747,143.0,142.95,11.57]
[1720692839644,22.8747,143.0,142.87,62.6956]
[1720692839645,11.57,142.98,142.87,16.4156]
[1720692839846,6.2386,142.96,142.92,11.57]
[1720692840147,16.2551,142.95,142.91,11.57]
[1720692841146,16.2551,142.95,142.92,11.57]
[1720692843250,16.2551,142.95,142.91,6.9973]
[1720692843449,16.2551,142.95,142.92,18.5668]
[1720692844846,16.2551,142.95,142.92,6.9968]
[1720692845348,16.2551,142.95,142.93,18.5664]
[1720692845752,16.2551,142.95,142.93,11.57]
[1720692846153,6.2386,142.96,142.93,11.57]
[1720692846455,15.747,142.98,142.95,18.5654]
[1720692846651,15.747,142.98,142.95,11.57]
[1720692846837,15.747,142.98,142.94,11.57]
[1720692848651,27.317,142.98,142.93,11.57]
[1720692849337,27.317,142.98,142.93,18.5663]
[1720692850877,27.317,142.98,142.93,11.57]
[1720692851158,27.317,142.98,142.91,11.57]
[1720692851159,11.57,142.96,142.91,11.57]
[1720692851372,17.7909,142.95,142.9,11.57]
[1720692851530,17.7909,142.95,142.9,18.5677]
[1720692852159,6.2209,142.95,142.91,6.9972]
[1720692852330,6.2209,142.95,142.91,18.5672]
[1720692854249,6.2209,142.95,142.92,6.9968]
[1720692854851,6.2209,142.95,142.92,18.5668]
[1720692855051,15.747,142.98,142.92,18.5668]
[1720692855258,8.23682852,142.97,142.93,6.9961]
[1720692855449,15.747,142.98,142.93,18.5661]
[1720692855450,27.317,142.98,142.93,18.5661]
[1720692856069,6.9945,142.97,142.93,11.57]
[1720692856270,6.995,142.96,142.91,6.9972]
[1720692856451,6.995,142.96,142.93,11.57]
[1720692856655,6.995,142.96,142.92,11.57]
[1720692856951,18.565,142.96,142.91,11.57]
[1720692857175,18.565,142.96,142.91,18.5673]
[1720692857468,11.57,142.96,142.91,18.5673]
[1720692857674,18.5646,142.97,142.92,11.57]
[1720692857860,6.9946,142.97,142.93,11.57]
[1720692859268,22.741,142.98,142.94,11.57]
[1720692859640,8.23409282,142.97,142.94,11.57]
[1720692859870,22.741,142.98,142.94,11.57]
[1720692860276,15.22846161,142.97,142.94,11.57]
[1720692860572,15.747,142.98,142.93,11.57]
[1720692860573,15.22852321,142.96,142.93,11.57]
[1720692860770,6.9946,142.97,142.93,11.57]
[1720692861352,11.57,142.96,142.92,6.9968]
[1720692862968,11.57,142.96,142.93,6.9964]
[1720692863176,11.57,142.96,142.92,0.17]
[1720692864872,11.57,142.95,142.92,0.17]
[1720692865072,11.57,142.95,142.91,0.17]
[1720692866354,11.57,142.95,142.92,6.9967]
[1720692866752,11.57,142.95,142.91,6.9973]
[1720692867054,11.57,142.95,142.92,7.80948847]
[1720692867648,11.57,142.94,142.92,6.9969]
[1720692867854,11.57,142.95,142.92,6.9969]
[1720692870577,15.747,142.98,142.93,6.9964]
[1720692870782,11.57,142.96,142.93,6.9964]
[1720692872959,11.57,142.96,142.87,46.28]
[1720692873274,11.57,142.95,142.88,0.51]
[1720692873966,11.57,142.95,142.9,11.57]
[1720692874373,11.57,142.95,142.92,6.9968]
[1720692874556,15.747,142.98,142.9,6.9975]
[1720692874557,11.57,142.93,142.9,6.9975]
[1720692874760,11.57,142.92,142.89,6.998]
[1720692874990,11.57,142.92,142.9,6.9978]
[1720692875887,6.9951,142.96,142.91,6.9974]
[1720692876069,6.9951,142.96,142.88,11.57]
[1720692876070,11.57,142.93,142.92,6.9969]
[1720692876270,11.57,142.94,142.92,6.9969]
[1720692876955,11.57,142.95,142.92,6.9969]
[1720692878689,11.57,142.95,142.91,6.9972]
[1720692878990,11.57,142.94,142.91,6.9972]
[1720692879183,6.9945,142.97,142.93,6.9963]
[1720692879390,11.57,142.96,142.93,6.9963]
[1720692879603,6.9945,142.97,142.92,6.9967]
[1720692879901,11.57,142.96,142.92,6.9967]
[1720692880196,11.57,142.96,142.93,6.9963]
[1720692880604,11.57,142.96,142.92,7.1667]
[1720692882112,11.57,142.96,142.92,0.17]
[1720692882970,15.747,142.98,142.92,11.74]
[1720692883170,27.317,142.98,142.93,11.74]
[1720692883495,27.317,142.98,142.94,0.17]
[1720692885991,27.317,142.98,142.93,0.34]
[1720692886193,27.317,142.98,142.93,11.91]
[1720692886592,34.311,142.98,142.93,11.91]
[1720692886779,27.317,142.98,142.93,11.91]
[1720692887094,34.3112,142.98,142.93,11.91]
[1720692887479,6.9935,142.99,142.93,11.91]
[1720692887680,11.57,142.98,142.93,11.91]
[1720692894910,11.57,142.97,142.93,11.91]
[1720692896807,11.57,142.97,142.92,0.17]
[1720692897011,11.57,142.96,142.91,0.17]
[1720692897181,11.57,142.95,142.9,11.57]
[1720692897884,11.57,142.95,142.88,34.3138]
[1720692898084,11.57,142.95,142.92,6.9964]
[1720692898609,11.57,142.95,142.93,6.9962]
[1720692900103,11.57,142.95,142.89,0.17]
[1720692900415,11.57,142.94,142.89,12.08]
[1720692901386,11.57,142.94,142.91,6.9971]
[1720692901885,11.57,142.93,142.92,6.9969]
[1720692902204,11.57,142.94,142.92,6.9969]
[1720692903518,15.6358,142.97,142.93,6.9963]
[1720692904002,11.57,142.95,142.93,6.9963]
[1720692905804,11.57,142.95,142.9,11.57]
[1720692906006,11.57,142.93,142.89,12.08]
[1720692907110,11.57,142.93,142.89,0.51]
[1720692907331,11.57,142.93,142.89,12.08]
[1720692907688,11.57,142.93,142.92,6.9968]
[1720692908813,11.57,142.93,142.89,0.17]
[1720692908986,11.57,142.93,142.91,6.9971]
[1720692909188,11.57,142.92,142.91,6.9971]
[1720692910119,11.57,142.93,142.92,6.9969]
[1720692910411,6.995,142.96,142.92,6.9969]
[1720692910616,11.57,142.93,142.92,6.9969]
[1720692910788,11.57,142.93,142.91,6.9972]
[1720692913814,11.57,142.93,142.9,6.9977]
[1720692916615,6.9955,142.95,142.91,6.9973]
[1720692916819,11.57,142.93,142.91,6.9973]
[1720692917011,11.57,142.93,142.88,11.74]
[1720692917208,11.57,142.92,142.9,6.9978]
[1720692917615,18.39985666,142.97,142.9,6.9978]
[1720692917810,11.57,142.92,142.9,6.9978]
[1720692918919,11.57,142.93,142.9,6.9978]
[1720692919219,11.57,142.93,142.89,6.9982]
[1720692919416,11.57,142.93,142.9,6.9978]
[1720692919917,11.57,142.92,142.88,0.17]
[1720692920219,11.57,142.92,142.9,6.9977]
[1720692920403,6.995,142.96,142.91,6.9974]
[1720692920929,11.57,142.94,142.91,6.9974]
[1720692921621,11.57,142.94,142.9,6.9977]
[1720692921816,11.57,142.93,142.9,6.9977]
[1720692922805,11.57,142.93,142.88,18.7384]
[1720692923007,11.57,142.89,142.86,6.9994]
[1720692923216,11.57,142.88,142.85,7.0002]
[1720692923394,11.57,142.88,142.84,7.0007]
[1720692923601,11.57,142.88,142.85,7.0003]
[1720692926824,11.57,142.88,142.84,7.0007]
[1720692927023,11.57,142.87,142.84,7.0007]
[1720692927732,11.57,142.87,142.85,7.0003]
[1720692929623,11.57,142.87,142.82,11.57]
[1720692929624,11.57,142.86,142.82,7.0017]
[1720692929817,11.57,142.83,142.81,7.0022]
[1720692930011,11.57,142.83,142.82,7.0018]
[1720692930328,68.8723,142.87,142.82,7.0018]
[1720692930547,68.8723,142.87,142.77,6.1615]
[1720692930548,15.5929,142.87,142.83,7.001]
[1720692930717,11.57,142.86,142.84,7.0007]
[1720692931025,6.4739,142.88,142.85,7.0003]
[1720692931208,11.57,142.87,142.85,7.0003]
[1720692931408,6.9984,142.89,142.84,7.0006]
[1720692931623,11.57,142.88,142.84,7.0006]
[1720692931831,6.9984,142.89,142.85,7.0002]
[1720692932004,11.57,142.88,142.85,7.0002]
[1720692932816,11.57,142.86,142.77,6.1615]
[1720692933029,11.57,142.85,142.81,0.17]
[1720692933233,11.57,142.85,142.82,7.0014]
[1720692934530,19.02037776,142.91,142.83,0.34]
[1720692934842,19.02037776,142.91,142.85,7.0003]
[1720692934843,6.9984,142.89,142.85,7.0003]
[1720692935041,11.57,142.87,142.85,7.0003]
[1720692936332,11.57,142.87,142.84,7.0007]
[1720692936516,6.9983,142.9,142.85,7.0003]
[1720692936718,11.57,142.87,142.85,7.0003]
[1720692936911,11.57,142.86,142.84,7.0007]
[1720692938339,11.57,142.86,142.83,7.1712]
[1720692938717,11.57,142.86,142.83,7.0012]
[1720692939039,11.57,142.85,142.83,7.0012]
[1720692943838,17.4954,142.9,142.78,0.17]
[1720692944049,11.57,142.82,142.77,6.1615]
[1720692944244,11.57,142.81,142.8,7.0024]
[1720692944627,11.57,142.81,142.79,7.0031]
[1720692945027,11.57,142.81,142.8,7.0028]
[1720692947537,11.57,142.81,142.78,7.0033]
[1720692947738,11.57,142.79,142.78,7.0033]
[1720692950049,11.57,142.79,142.77,7.0041]
[1720692950252,11.57,142.78,142.77,7.0041]
[1720692952259,11.57,142.78,142.75,7.0051]
[1720692952456,11.57,142.77,142.76,7.0047]
[1720692952757,22.4003,142.81,142.73,0.17]
[1720692952959,22.4003,142.81,142.77,7.0041]
[1720692953660,11.57,142.79,142.77,7.0041]
[1720692954262,16.3589,142.81,142.78,7.0037]
[1720692954561,27.9289,142.81,142.77,0.17]
[1720692954760,27.9289,142.81,142.78,7.0036]
[1720692954941,11.57,142.79,142.78,7.0036]
[1720692955142,11.57,142.79,142.77,7.1741]
[1720692955459,11.57,142.79,142.74,11.57]
[1720692955641,11.57,142.78,142.75,0.17]
[1720692956463,11.57,142.78,142.74,0.34]
[1720692956764,11.57,142.78,142.77,7.0042]
[1720692957259,11.57,142.79,142.78,7.0036]
[1720692957833,16.3589,142.81,142.79,7.0029]
[1720692958340,11.57,142.8,142.78,7.0036]
[1720692960357,11.57,142.8,142.79,7.0031]
[1720692960558,24.76711406,142.85,142.79,0.17]
[1720692960870,11.57,142.83,142.79,0.17]
[1720692961047,11.57,142.83,142.81,7.0023]
[1720692961446,11.57,142.83,142.8,7.0027]
[1720692961958,11.57,142.82,142.77,11.57]
[1720692962144,11.57,142.81,142.77,0.17]
[1720692962468,11.57,142.8,142.78,7.0036]
[1720692963173,11.57,142.81,142.79,7.0032]
[1720692963339,22.0312,142.85,142.72,16.4027703]
[1720692963544,22.5804,142.8,142.74,7.0056]
[1720692963770,22.5804,142.8,142.73,7.0061]
[1720692963771,11.57,142.77,142.73,7.0061]
[1720692964168,7.0043,142.77,142.72,7.8587703]
[1720692964466,11.57,142.76,142.72,7.8587703]
[1720692964764,11.57,142.76,142.73,7.0061]
[1720692965764,18.5747,142.76,142.72,0.8522703]
[1720692965978,11.57,142.75,142.72,7.8584703]
[1720692966269,11.57,142.75,142.73,7.0062]
[1720692966655,7.0039,142.78,142.73,7.0062]
[1720692967558,75.8635,142.8,142.74,7.0057]
[1720692967766,11.57,142.77,142.74,7.0057]
[1720692968955,11.57,142.77,142.75,7.0051]
[1720692969151,22.5804,142.8,142.73,0.17]
[1720692969349,22.5804,142.8,142.76,7.0045]
[1720692969650,16.389,142.8,142.76,7.0045]
[1720692969859,11.57,142.79,142.77,7.0041]
[1720692970443,11.57,142.79,142.76,7.0046]
[1720692970858,11.57,142.78,142.76,7.0046]
[1720692971270,11.57,142.79,142.76,7.0046]
[1720692971674,11.57,142.78,142.76,7.0046]
[1720692972368,11.57,142.78,142.75,7.005]
[1720692972578,11.57,142.77,142.75,7.005]
[1720692972777,7.0035,142.79,142.74,7.0056]
[1720692972961,11.57,142.76,142.74,7.0056]
[1720692973352,34.9619,142.8,142.75,7.0052]
[1720692973558,11.57,142.77,142.76,7.0047]
[1720692973781,23.3919,142.8,142.76,7.0047]
[1720692973782,11.57,142.78,142.76,7.0047]
[1720692974476,11.57,142.77,142.74,7.0056]
[1720692974652,11.57,142.76,142.74,7.0056]
[1720692974853,34.9621,142.8,142.75,7.0052]
[1720692975055,11.57,142.77,142.75,7.0052]
[1720692975555,7.0032,142.79,142.74,7.0056]
[1720692975761,11.57,142.76,142.74,7.0056]
[1720692977776,7.0032,142.79,142.74,7.0056]
[1720692978083,7.0032,142.79,142.75,7.0051]
[1720692978265,69.6719,142.8,142.75,7.0051]
[1720692978462,11.57,142.77,142.76,7.0045]
[1720692978670,16.389,142.8,142.76,7.0045]
[1720692978889,11.57,142.78,142.76,7.0045]
[1720692979681,16.389,142.8,142.76,7.0045]
[1720692979872,16.0191,142.82,142.75,0.17]
[1720692980059,11.57,142.8,142.78,7.0037]
[1720692980257,11.57,142.79,142.77,7.0042]
[1720692980479,11.57,142.78,142.76,7.0046]
[1720692980777,11.57,142.78,142.75,7.0051]
[1720692981085,11.57,142.77,142.76,7.0047]
[1720692981471,11.57,142.78,142.76,7.0047]
[1720692982863,11.57,142.78,142.74,0.17]
[1720692982864,11.57,142.78,142.77,7.0042]
[1720692983065,11.57,142.79,142.77,7.0042]
[1720692984987,23.0212,142.82,142.77,7.0042]
[1720692985169,11.57,142.79,142.77,7.0042]
[1720692986270,23.021,142.82,142.77,7.0042]
[1720692986483,11.57,142.8,142.77,7.0042]
[1720692986970,16.0191,142.82,142.76,11.74]
[1720692987294,11.57,142.81,142.79,7.0028]
[1720692989802,13.1592,142.84,142.76,7.0043]
[1720692989803,7.0028,142.8,142.76,7.0043]
[1720692989976,11.57,142.78,142.76,7.0047]
[1720692990176,11.57,142.78,142.77,7.0042]
[1720692990481,11.57,142.79,142.77,7.0042]
[1720692990688,7.002,142.82,142.77,7.0042]
[1720692990983,11.57,142.8,142.78,7.0037]
[1720692991688,11.57,142.8,142.77,7.0041]
[1720692992009,11.57,142.78,142.75,7.0048]
[1720692992702,7.0023,142.81,142.76,7.0043]
[1720692992899,7.0023,142.81,142.74,0.17]
[1720692992900,11.57,142.79,142.77,7.0042]
[1720692993676,11.57,142.79,142.76,7.0046]
[1720692994178,11.57,142.78,142.76,7.0046]
[1720692994685,11.57,142.78,142.65,123.91545721]
[1720692994686,15.7724,142.72,142.66,7.32884977]
[1720692994892,15.7724,142.72,142.57,0.8522703]
[1720692994893,17.5259,142.65,142.57,0.8522703]
[1720692995096,0.34,142.71,142.6,11.57]
[1720692995288,7.0087,142.68,142.57,36.44472476]
[1720692995625,11.57,142.67,142.62,11.57]
[1720692996295,11.57,142.67,142.57,0.8522703]
[1720692996296,7.0095,142.67,142.6,7.0124]
[1720692996604,7.0095,142.67,142.61,11.57]
[1720692996605,11.57,142.66,142.61,11.57]
[1720692996811,11.57,142.65,142.6,18.5824]
[1720692997882,11.57,142.65,142.57,0.8522703]
[1720692998095,11.57,142.65,142.6,18.5825]
[1720692998496,11.57,142.65,142.61,7.012]
[1720692998699,7.0096,142.67,142.61,7.012]
[1720692998903,11.57,142.66,142.62,7.0113]
[1720692999209,7.0078,142.7,142.65,7.0101]
[1720692999703,15.7724,142.72,142.63,0.17]
[1720692999899,11.57,142.68,142.63,0.17]